[Event "Titled Tuesday Blitz May 9 Late 2023"]
[White "Martinez Alcantara, Jose Eduardo"]
[Black "Sarana, Alexey"]
[WhiteFideId "3805662"]
[BlackFideId "24133795"]
[WhiteElo "2711"]
[BlackElo "2714"]
[Result "1/2-1/2"]
[Round "09"]
[TimeControl "180+2"]
[Date "2023.05.09"]
[WhiteClock "0:00:06"]
[BlackClock "0:00:22"]

1. e4 {[%clk 0:03:00]}  c5 {[%clk 0:02:59]} 2. Nf3 {[%clk 0:03:00]}  d6 {[%clk 0:03:00]} 3. c3 {[%clk 0:03:01]}  Nf6 {[%clk 0:02:59]} 4. h3 {[%clk 0:02:59]}  g6 {[%clk 0:02:59]} 5. Bd3 {[%clk 0:03:00]}  Bg7 {[%clk 0:03:00]} 6. Bc2 {[%clk 0:03:00]}  O-O {[%clk 0:03:00]} 7. O-O {[%clk 0:03:01]}  Nc6 {[%clk 0:03:00]} 8. d4 {[%clk 0:03:02]}  cxd4 {[%clk 0:03:01]} 9. cxd4 {[%clk 0:03:03]}  e5 {[%clk 0:03:02]} 10. d5 {[%clk 0:03:02]}  Nb4 {[%clk 0:03:02]} 11. Nc3 {[%clk 0:03:03]}  Nxc2 {[%clk 0:03:02]} 12. Qxc2 {[%clk 0:03:04]}  Ne8 {[%clk 0:03:02]} 13. Qb3 {[%clk 0:03:05]}  f5 {[%clk 0:02:50]} 14. Ng5 {[%clk 0:02:59]}  Nc7 {[%clk 0:02:48]} 15. Ne6 {[%clk 0:02:44]}  Nxe6 {[%clk 0:02:43]} 16. dxe6 {[%clk 0:02:45]}  Qe7 {[%clk 0:02:42]} 17. Nd5 {[%clk 0:02:27]}  Qxe6 {[%clk 0:02:42]} 18. Nc7 {[%clk 0:02:20]}  Qxb3 {[%clk 0:02:41]} 19. axb3 {[%clk 0:02:21]}  Rb8 {[%clk 0:02:41]} 20. Rd1 {[%clk 0:01:46]}  Rd8 {[%clk 0:01:50]} 21. Bg5 {[%clk 0:01:24]}  Rd7 {[%clk 0:01:50]} 22. Ne8 {[%clk 0:00:58]}  fxe4 {[%clk 0:01:42]} 23. Nxd6 {[%clk 0:00:53]}  Bf8 {[%clk 0:01:29]} 24. Nxe4 {[%clk 0:00:47]}  Rxd1+ {[%clk 0:01:30]} 25. Rxd1 {[%clk 0:00:47]}  Be6 {[%clk 0:01:19]} 26. Nf6+ {[%clk 0:00:39]}  Kg7 {[%clk 0:01:04]} 27. Nd7 {[%clk 0:00:36]}  Rc8 {[%clk 0:00:59]} 28. Nxf8 {[%clk 0:00:33]}  Rxf8 {[%clk 0:00:58]} 29. b4 {[%clk 0:00:31]}  Rc8 {[%clk 0:00:57]} 30. Re1 {[%clk 0:00:25]}  Rc2 {[%clk 0:00:49]} 31. Rxe5 {[%clk 0:00:24]}  Kf7 {[%clk 0:00:49]} 32. Ra5 {[%clk 0:00:15]}  a6 {[%clk 0:00:48]} 33. b5 {[%clk 0:00:16]}  Rc5 {[%clk 0:00:41]} 34. Be3 {[%clk 0:00:15]}  Rd5 {[%clk 0:00:37]} 35. Bb6 {[%clk 0:00:11]}  axb5 {[%clk 0:00:32]} 36. b4 {[%clk 0:00:11]}  Rd6 {[%clk 0:00:26]} 37. Be3 {[%clk 0:00:07]}  Bd7 {[%clk 0:00:24]} 38. Ra8 {[%clk 0:00:07]}  Bc6 {[%clk 0:00:23]} 39. Bc5 {[%clk 0:00:06]}  Rd1+ {[%clk 0:00:22]} 40. Kh2 {[%clk 0:00:06]}  h5 {[%clk 0:00:22]} 41. Rf8+ {[%clk 0:00:06]}  Ke6 {[%clk 0:00:21]} 42. h4 {[%clk 0:00:04]}  Rd3 {[%clk 0:00:20]} 43. Rg8 {[%clk 0:00:04]}  Kf7 {[%clk 0:00:20]} 44. Rf8+ {[%clk 0:00:05]}  Ke6 {[%clk 0:00:21]} 45. Rg8 {[%clk 0:00:05]}  Kf7 {[%clk 0:00:21]} 46. Rf8+ {[%clk 0:00:06]}  Ke6 {[%clk 0:00:22]} 1/2-1/2


[Site "https://www.chess.com"]

[Event "Titled Tuesday Blitz May 9 Late 2023"]
[White "Tang, Andrew"]
[Black "Andreikin, Dmitry"]
[WhiteFideId "2059630"]
[BlackFideId "4158814"]
[WhiteElo "2596"]
[BlackElo "2736"]
[Result "0-1"]
[Round "09"]
[TimeControl "180+2"]
[Date "2023.05.09"]
[WhiteClock "0:00:00"]
[BlackClock "0:00:05"]

1. d4 {[%clk 0:03:00]}  Nf6 {[%clk 0:03:00]} 2. Nf3 {[%clk 0:02:51]}  c5 {[%clk 0:03:00]} 3. d5 {[%clk 0:02:46]}  b5 {[%clk 0:03:00]} 4. c4 {[%clk 0:02:38]}  Bb7 {[%clk 0:02:57]} 5. Qc2 {[%clk 0:02:38]}  bxc4 {[%clk 0:02:45]} 6. e4 {[%clk 0:02:38]}  d6 {[%clk 0:02:37]} 7. Bxc4 {[%clk 0:02:34]}  g6 {[%clk 0:02:38]} 8. Nc3 {[%clk 0:01:56]}  Bg7 {[%clk 0:02:37]} 9. O-O {[%clk 0:01:56]}  O-O {[%clk 0:02:37]} 10. Bf4 {[%clk 0:01:45]}  Ba6 {[%clk 0:02:37]} 11. Nb5 {[%clk 0:00:36]}  Bxb5 {[%clk 0:02:15]} 12. Bxb5 {[%clk 0:00:36]}  Qb6 {[%clk 0:02:14]} 13. Bc4 {[%clk 0:00:33]}  Nbd7 {[%clk 0:02:06]} 14. Rab1 {[%clk 0:00:33]}  Ng4 {[%clk 0:02:03]} 15. Rfe1 {[%clk 0:00:32]}  Nde5 {[%clk 0:02:00]} 16. Nd2 {[%clk 0:00:28]}  f5 {[%clk 0:01:56]} 17. exf5 {[%clk 0:00:19]}  Rxf5 {[%clk 0:01:55]} 18. Bg3 {[%clk 0:00:20]}  Bh6 {[%clk 0:01:33]} 19. Ne4 {[%clk 0:00:18]}  Raf8 {[%clk 0:01:25]} 20. b3 {[%clk 0:00:18]}  Bf4 {[%clk 0:01:18]} 21. Bxf4 {[%clk 0:00:12]}  Rxf4 {[%clk 0:01:18]} 22. Re2 {[%clk 0:00:13]}  R8f5 {[%clk 0:00:59]} 23. Ng3 {[%clk 0:00:09]}  Rf6 {[%clk 0:00:39]} 24. Ne4 {[%clk 0:00:09]}  R6f5 {[%clk 0:00:38]} 25. h3 {[%clk 0:00:09]}  Nf6 {[%clk 0:00:35]} 26. Ng3 {[%clk 0:00:09]}  Rg5 {[%clk 0:00:31]} 27. Qc1 {[%clk 0:00:10]}  Rxg3 {[%clk 0:00:20]} 28. fxg3 {[%clk 0:00:10]}  Rd4 {[%clk 0:00:18]} 29. Qc2 {[%clk 0:00:10]}  Nh5 {[%clk 0:00:17]} 30. Kh2 {[%clk 0:00:10]}  Kg7 {[%clk 0:00:16]} 31. Rf1 {[%clk 0:00:10]}  Qd8 {[%clk 0:00:14]} 32. Re4 {[%clk 0:00:10]}  Nf6 {[%clk 0:00:13]} 33. Ref4 {[%clk 0:00:06]}  Qa5 {[%clk 0:00:09]} 34. Qf2 {[%clk 0:00:06]}  Rxf4 {[%clk 0:00:07]} 35. Qxf4 {[%clk 0:00:05]}  Qc3 {[%clk 0:00:06]} 36. g4 {[%clk 0:00:04]}  h6 {[%clk 0:00:06]} 37. g5 {[%clk 0:00:05]}  hxg5 {[%clk 0:00:06]} 38. Qxg5 {[%clk 0:00:05]}  Nxc4 {[%clk 0:00:05]} 39. bxc4 {[%clk 0:00:06]}  Qxc4 {[%clk 0:00:06]} 40. Re1 {[%clk 0:00:05]}  Nxd5 {[%clk 0:00:06]} 41. a3 {[%clk 0:00:03]}  Qd3 {[%clk 0:00:05]} 42. Re6 {[%clk 0:00:02]}  Qf5 {[%clk 0:00:04]} 43. Qxf5 {[%clk 0:00:01]}  gxf5 {[%clk 0:00:05]} 44. Kg3 {[%clk 0:00:02]}  c4 {[%clk 0:00:05]} 45. Kf3 {[%clk 0:00:02]}  c3 {[%clk 0:00:05]} 46. Ke2 {[%clk 0:00:00]}  Nf4+ {[%clk 0:00:05]} 0-1


[Site "https://www.chess.com"]

[Event "Titled Tuesday Blitz May 9 Late 2023"]
[White "Wieczorek, Oskar"]
[Black "Terry, Renato"]
[WhiteFideId "1133950"]
[BlackFideId "3803457"]
[WhiteElo "2418"]
[BlackElo "2575"]
[Result "0-1"]
[Round "09"]
[TimeControl "180+2"]
[Date "2023.05.09"]
[WhiteClock "0:00:00"]
[BlackClock "0:00:47"]

1. e4 {[%clk 0:03:00]}  g6 {[%clk 0:02:58]} 2. d4 {[%clk 0:03:00]}  Bg7 {[%clk 0:02:58]} 3. Nf3 {[%clk 0:03:01]}  d6 {[%clk 0:02:58]} 4. Bc4 {[%clk 0:03:01]}  Nf6 {[%clk 0:02:58]} 5. Qe2 {[%clk 0:03:01]}  c6 {[%clk 0:02:57]} 6. Bb3 {[%clk 0:03:01]}  O-O {[%clk 0:02:56]} 7. O-O {[%clk 0:02:59]}  Qc7 {[%clk 0:02:55]} 8. e5 {[%clk 0:02:53]}  Nd5 {[%clk 0:02:55]} 9. c4 {[%clk 0:02:44]}  Nb6 {[%clk 0:02:55]} 10. Nc3 {[%clk 0:02:42]}  dxe5 {[%clk 0:02:54]} 11. Nxe5 {[%clk 0:02:11]}  N6d7 {[%clk 0:02:54]} 12. Nf3 {[%clk 0:02:06]}  Re8 {[%clk 0:02:52]} 13. c5 {[%clk 0:01:45]}  Nf8 {[%clk 0:02:36]} 14. Ng5 {[%clk 0:01:36]}  e6 {[%clk 0:02:37]} 15. h4 {[%clk 0:01:28]}  Bxd4 {[%clk 0:02:28]} 16. Nce4 {[%clk 0:01:22]}  Nbd7 {[%clk 0:02:13]} 17. Be3 {[%clk 0:01:20]}  Be5 {[%clk 0:02:02]} 18. Rad1 {[%clk 0:01:16]}  h6 {[%clk 0:01:41]} 19. Nd6 {[%clk 0:00:52]}  Re7 {[%clk 0:01:34]} 20. Nge4 {[%clk 0:00:46]}  Bg7 {[%clk 0:01:32]} 21. Bf4 {[%clk 0:00:31]}  Qa5 {[%clk 0:01:32]} 22. Qe3 {[%clk 0:00:26]}  Kh7 {[%clk 0:01:18]} 23. h5 {[%clk 0:00:26]}  b6 {[%clk 0:01:15]} 24. hxg6+ {[%clk 0:00:25]}  Nxg6 {[%clk 0:01:15]} 25. Bg3 {[%clk 0:00:16]}  Nxc5 {[%clk 0:01:12]} 26. Nxc5 {[%clk 0:00:16]}  Qxc5 {[%clk 0:01:13]} 27. Qe4 {[%clk 0:00:12]}  f5 {[%clk 0:01:02]} 28. Qe2 {[%clk 0:00:11]}  Bd7 {[%clk 0:01:00]} 29. Rc1 {[%clk 0:00:11]}  Qd4 {[%clk 0:00:57]} 30. Rfd1 {[%clk 0:00:11]}  Qxb2 {[%clk 0:00:56]} 31. Qh5 {[%clk 0:00:10]}  Qf6 {[%clk 0:00:55]} 32. Re1 {[%clk 0:00:04]}  Qg5 {[%clk 0:00:54]} 33. Qf3 {[%clk 0:00:04]}  Rf8 {[%clk 0:00:52]} 34. Rcd1 {[%clk 0:00:04]}  e5 {[%clk 0:00:50]} 35. Qe2 {[%clk 0:00:03]}  e4 {[%clk 0:00:48]} 36. Bh2 {[%clk 0:00:03]}  Nh4 {[%clk 0:00:48]} 37. f4 {[%clk 0:00:00]}  exf3 {[%clk 0:00:47]} 0-1


[Site "https://www.chess.com"]

[Event "Titled Tuesday Blitz May 9 Late 2023"]
[White "Sargsyan, Shant"]
[Black "Yoo, Christopher Woojin"]
[WhiteFideId "13306766"]
[BlackFideId "30909694"]
[WhiteElo "2628"]
[BlackElo "2519"]
[Result "1-0"]
[Round "09"]
[TimeControl "180+2"]
[Date "2023.05.09"]
[WhiteClock "0:01:26"]
[BlackClock "0:00:05"]

1. c4 {[%clk 0:03:00]}  e5 {[%clk 0:02:59]} 2. g3 {[%clk 0:03:00]}  Nf6 {[%clk 0:02:59]} 3. Bg2 {[%clk 0:03:00]}  c6 {[%clk 0:02:59]} 4. d4 {[%clk 0:02:59]}  e4 {[%clk 0:02:58]} 5. d5 {[%clk 0:03:00]}  Bb4+ {[%clk 0:02:59]} 6. Bd2 {[%clk 0:03:00]}  Qe7 {[%clk 0:02:59]} 7. Nh3 {[%clk 0:02:59]}  O-O {[%clk 0:02:56]} 8. O-O {[%clk 0:02:56]}  cxd5 {[%clk 0:02:54]} 9. Nf4 {[%clk 0:02:55]}  dxc4 {[%clk 0:02:42]} 10. Nc3 {[%clk 0:02:55]}  Bxc3 {[%clk 0:01:25]} 11. Bxc3 {[%clk 0:02:56]}  Re8 {[%clk 0:01:24]} 12. Rc1 {[%clk 0:02:49]}  Nc6 {[%clk 0:01:19]} 13. Bxf6 {[%clk 0:02:46]}  Qxf6 {[%clk 0:01:19]} 14. Nd5 {[%clk 0:02:42]}  Qe5 {[%clk 0:01:18]} 15. Rxc4 {[%clk 0:02:42]}  f5 {[%clk 0:01:15]} 16. f4 {[%clk 0:02:31]}  Qd6 {[%clk 0:01:05]} 17. g4 {[%clk 0:02:24]}  b5 {[%clk 0:00:58]} 18. Rc1 {[%clk 0:02:24]}  fxg4 {[%clk 0:00:48]} 19. f5 {[%clk 0:02:25]}  Re5 {[%clk 0:00:38]} 20. Ne3 {[%clk 0:02:02]}  Qd4 {[%clk 0:00:38]} 21. Qb3+ {[%clk 0:01:56]}  Kf8 {[%clk 0:00:31]} 22. f6 {[%clk 0:01:54]}  d5 {[%clk 0:00:31]} 23. fxg7+ {[%clk 0:01:51]}  Kxg7 {[%clk 0:00:30]} 24. Rxc6 {[%clk 0:01:51]}  Be6 {[%clk 0:00:28]} 25. Kh1 {[%clk 0:01:40]}  Rf8 {[%clk 0:00:23]} 26. Rd1 {[%clk 0:01:31]}  Qa4 {[%clk 0:00:18]} 27. Qc3 {[%clk 0:01:28]}  d4 {[%clk 0:00:09]} 28. Rxd4 {[%clk 0:01:29]}  Qxa2 {[%clk 0:00:05]} 29. Rd1 {[%clk 0:01:26]} 1-0


[Site "https://www.chess.com"]

[Event "Titled Tuesday Blitz May 9 Late 2023"]
[White "Paravyan, David"]
[Black "Remizov, Yaroslav"]
[WhiteFideId "4194985"]
[BlackFideId "34134015"]
[WhiteElo "2563"]
[BlackElo "2400"]
[Result "0-1"]
[Round "09"]
[TimeControl "180+2"]
[Date "2023.05.09"]
[WhiteClock "0:00:00"]
[BlackClock "0:01:05"]

1. e4 {[%clk 0:03:00]}  c5 {[%clk 0:02:58]} 2. Nf3 {[%clk 0:03:01]}  e6 {[%clk 0:02:58]} 3. d4 {[%clk 0:03:02]}  cxd4 {[%clk 0:02:58]} 4. Nxd4 {[%clk 0:03:02]}  Nf6 {[%clk 0:02:58]} 5. Nc3 {[%clk 0:03:03]}  Nc6 {[%clk 0:02:58]} 6. Nxc6 {[%clk 0:03:03]}  bxc6 {[%clk 0:02:58]} 7. e5 {[%clk 0:03:04]}  Nd5 {[%clk 0:02:56]} 8. Ne4 {[%clk 0:03:05]}  Qc7 {[%clk 0:02:57]} 9. f4 {[%clk 0:03:04]}  Rb8 {[%clk 0:02:57]} 10. a3 {[%clk 0:03:02]}  f5 {[%clk 0:02:49]} 11. exf6 {[%clk 0:03:01]}  gxf6 {[%clk 0:02:44]} 12. c4 {[%clk 0:02:40]}  Nxf4 {[%clk 0:02:35]} 13. Qf3 {[%clk 0:02:33]}  e5 {[%clk 0:02:26]} 14. Nxf6+ {[%clk 0:02:28]}  Kd8 {[%clk 0:02:25]} 15. g3 {[%clk 0:02:26]}  Be7 {[%clk 0:02:11]} 16. Ne4 {[%clk 0:01:51]}  Ne6 {[%clk 0:02:11]} 17. Bh3 {[%clk 0:00:48]}  Nd4 {[%clk 0:02:11]} 18. Qf7 {[%clk 0:00:47]}  Rf8 {[%clk 0:02:04]} 19. Qg7 {[%clk 0:00:46]}  d5 {[%clk 0:01:49]} 20. Bg5 {[%clk 0:00:44]}  Nf3+ {[%clk 0:01:47]} 21. Kd1 {[%clk 0:00:42]}  Nxg5 {[%clk 0:01:43]} 22. Nxg5 {[%clk 0:00:39]}  Rxb2 {[%clk 0:01:35]} 23. Rf1 {[%clk 0:00:25]}  Bg4+ {[%clk 0:01:21]} 24. Kc1 {[%clk 0:00:23]}  Rbf2 {[%clk 0:01:21]} 25. Rxf2 {[%clk 0:00:11]}  Bxa3+ {[%clk 0:01:20]} 26. Rxa3 {[%clk 0:00:12]}  Qxg7 {[%clk 0:01:19]} 27. Rxf8+ {[%clk 0:00:04]}  Qxf8 {[%clk 0:01:18]} 28. Rxa7 {[%clk 0:00:05]}  Qh6 {[%clk 0:01:08]} 29. Ra8+ {[%clk 0:00:02]}  Kc7 {[%clk 0:01:05]} 30. Ra7+ {[%clk 0:00:00]}  Kb6 {[%clk 0:01:05]} 0-1


[Site "https://www.chess.com"]

[Event "Titled Tuesday Blitz May 9 Late 2023"]
[White "Bjelobrk, Igor"]
[Black "Chigaev, Maksim"]
[WhiteFideId "4300726"]
[BlackFideId "4108116"]
[WhiteElo "2319"]
[BlackElo "2558"]
[Result "1-0"]
[Round "09"]
[TimeControl "180+2"]
[Date "2023.05.09"]
[WhiteClock "0:00:06"]
[BlackClock "0:00:00"]

1. d4 {[%clk 0:03:00]}  Nf6 {[%clk 0:02:59]} 2. c4 {[%clk 0:02:59]}  g6 {[%clk 0:03:00]} 3. Nc3 {[%clk 0:02:56]}  Bg7 {[%clk 0:03:00]} 4. e4 {[%clk 0:02:55]}  d6 {[%clk 0:03:01]} 5. Nf3 {[%clk 0:02:52]}  O-O {[%clk 0:03:01]} 6. Be2 {[%clk 0:02:50]}  e5 {[%clk 0:03:02]} 7. d5 {[%clk 0:02:50]}  a5 {[%clk 0:03:00]} 8. Bg5 {[%clk 0:02:36]}  h6 {[%clk 0:02:58]} 9. Be3 {[%clk 0:02:34]}  Ng4 {[%clk 0:02:57]} 10. Bc1 {[%clk 0:02:34]}  f5 {[%clk 0:02:56]} 11. exf5 {[%clk 0:02:33]}  gxf5 {[%clk 0:02:57]} 12. g3 {[%clk 0:02:33]}  Na6 {[%clk 0:02:56]} 13. Nh4 {[%clk 0:02:29]}  Nc5 {[%clk 0:02:47]} 14. O-O {[%clk 0:02:27]}  Bd7 {[%clk 0:02:44]} 15. Nxf5 {[%clk 0:02:19]}  Nxf2 {[%clk 0:02:13]} 16. Nxh6+ {[%clk 0:02:10]}  Bxh6 {[%clk 0:02:13]} 17. Rxf2 {[%clk 0:02:10]}  Rxf2 {[%clk 0:02:13]} 18. Kxf2 {[%clk 0:02:11]}  Qf6+ {[%clk 0:02:14]} 19. Kg2 {[%clk 0:02:06]}  Rf8 {[%clk 0:02:12]} 20. Bxh6 {[%clk 0:01:57]}  Qxh6 {[%clk 0:02:08]} 21. Bg4 {[%clk 0:01:53]}  Nd3 {[%clk 0:01:49]} 22. Ne4 {[%clk 0:01:35]}  Ne1+ {[%clk 0:00:37]} 23. Qxe1 {[%clk 0:01:34]}  Bxg4 {[%clk 0:00:37]} 24. Qd2 {[%clk 0:01:33]}  Bh3+ {[%clk 0:00:15]} 25. Kg1 {[%clk 0:01:31]}  Qxd2 {[%clk 0:00:15]} 26. Nxd2 {[%clk 0:01:31]}  Kg7 {[%clk 0:00:16]} 27. Re1 {[%clk 0:01:28]}  b6 {[%clk 0:00:16]} 28. Re4 {[%clk 0:01:26]}  Kg6 {[%clk 0:00:15]} 29. Rh4 {[%clk 0:01:26]}  Bf5 {[%clk 0:00:15]} 30. a3 {[%clk 0:00:53]}  a4 {[%clk 0:00:15]} 31. h3 {[%clk 0:00:46]}  Bd3 {[%clk 0:00:05]} 32. Rg4+ {[%clk 0:00:43]}  Kf5 {[%clk 0:00:05]} 33. Kf2 {[%clk 0:00:42]}  Rh8 {[%clk 0:00:02]} 34. Kg2 {[%clk 0:00:20]}  Bc2 {[%clk 0:00:02]} 35. Rg7 {[%clk 0:00:18]}  e4 {[%clk 0:00:03]} 36. g4+ {[%clk 0:00:14]}  Ke5 {[%clk 0:00:03]} 37. Rxc7 {[%clk 0:00:13]}  Kd4 {[%clk 0:00:03]} 38. Rc6 {[%clk 0:00:09]}  Rf8 {[%clk 0:00:03]} 39. Rxd6 {[%clk 0:00:08]}  Bd1 {[%clk 0:00:04]} 40. Re6 {[%clk 0:00:08]}  e3 {[%clk 0:00:04]} 41. Nf1 {[%clk 0:00:07]}  Bf3+ {[%clk 0:00:03]} 42. Kg1 {[%clk 0:00:07]}  Be4 {[%clk 0:00:02]} 43. Ng3 {[%clk 0:00:07]}  Bd3 {[%clk 0:00:02]} 44. d6 {[%clk 0:00:06]}  Bxc4 {[%clk 0:00:02]} 45. Re7 {[%clk 0:00:06]}  Rd8 {[%clk 0:00:00]} 46. d7 {[%clk 0:00:06]} 1-0


[Site "https://www.chess.com"]

[Event "Titled Tuesday Blitz May 9 Late 2023"]
[White "Timmermans, Mark"]
[Black "Kramnik, Vladimir"]
[WhiteFideId "1026399"]
[BlackFideId "4101588"]
[WhiteElo "2460"]
[BlackElo "2703"]
[Result "1-0"]
[Round "09"]
[TimeControl "180+2"]
[Date "2023.05.09"]
[WhiteClock "0:00:38"]
[BlackClock "0:00:00"]

1. e4 {[%clk 0:03:00]}  e6 {[%clk 0:02:59]} 2. d4 {[%clk 0:03:00]}  d5 {[%clk 0:02:59]} 3. Nd2 {[%clk 0:03:00]}  c5 {[%clk 0:02:58]} 4. exd5 {[%clk 0:03:01]}  exd5 {[%clk 0:02:58]} 5. Ngf3 {[%clk 0:02:57]}  Nc6 {[%clk 0:02:58]} 6. Bb5 {[%clk 0:02:57]}  Qe7+ {[%clk 0:02:58]} 7. Be2 {[%clk 0:02:39]}  Qc7 {[%clk 0:02:57]} 8. O-O {[%clk 0:02:38]}  Nf6 {[%clk 0:02:57]} 9. Re1 {[%clk 0:02:29]}  cxd4 {[%clk 0:02:51]} 10. Bb5+ {[%clk 0:02:25]}  Be7 {[%clk 0:02:50]} 11. Qe2 {[%clk 0:02:13]}  Bg4 {[%clk 0:02:27]} 12. h3 {[%clk 0:02:00]}  Bh5 {[%clk 0:02:02]} 13. g4 {[%clk 0:01:20]}  Bg6 {[%clk 0:02:01]} 14. Bxc6+ {[%clk 0:01:20]}  bxc6 {[%clk 0:01:58]} 15. Nxd4 {[%clk 0:01:21]}  Ne4 {[%clk 0:01:24]} 16. Nxe4 {[%clk 0:01:21]}  dxe4 {[%clk 0:01:22]} 17. Be3 {[%clk 0:01:21]}  O-O {[%clk 0:01:19]} 18. Rad1 {[%clk 0:01:15]}  Rfe8 {[%clk 0:01:14]} 19. Nb3 {[%clk 0:01:14]}  a5 {[%clk 0:01:11]} 20. Nc5 {[%clk 0:01:10]}  Bd6 {[%clk 0:00:52]} 21. Qc4 {[%clk 0:01:08]}  h5 {[%clk 0:00:48]} 22. Rd2 {[%clk 0:01:06]}  hxg4 {[%clk 0:00:47]} 23. hxg4 {[%clk 0:01:06]}  Qe7 {[%clk 0:00:35]} 24. Red1 {[%clk 0:01:07]}  Rad8 {[%clk 0:00:27]} 25. Nb7 {[%clk 0:01:01]}  Bh2+ {[%clk 0:00:16]} 26. Kxh2 {[%clk 0:00:58]}  Qh4+ {[%clk 0:00:16]} 27. Kg1 {[%clk 0:00:59]}  Qxg4+ {[%clk 0:00:16]} 28. Kf1 {[%clk 0:01:00]}  Qh3+ {[%clk 0:00:15]} 29. Ke1 {[%clk 0:00:56]}  Qh1+ {[%clk 0:00:14]} 30. Qf1 {[%clk 0:00:55]}  Qxf1+ {[%clk 0:00:12]} 31. Kxf1 {[%clk 0:00:55]}  Rb8 {[%clk 0:00:12]} 32. Nxa5 {[%clk 0:00:54]}  Rxb2 {[%clk 0:00:12]} 33. c4 {[%clk 0:00:53]}  Rxd2 {[%clk 0:00:10]} 34. Rxd2 {[%clk 0:00:52]}  Rb8 {[%clk 0:00:09]} 35. Nxc6 {[%clk 0:00:48]}  Rb1+ {[%clk 0:00:08]} 36. Kg2 {[%clk 0:00:48]}  Bh5 {[%clk 0:00:08]} 37. Nd4 {[%clk 0:00:40]}  f6 {[%clk 0:00:08]} 38. Rc2 {[%clk 0:00:39]}  Ra1 {[%clk 0:00:04]} 39. c5 {[%clk 0:00:39]}  f5 {[%clk 0:00:00]} 40. c6 {[%clk 0:00:38]} 1-0


[Site "https://www.chess.com"]

[Event "Titled Tuesday Blitz May 9 Late 2023"]
[White "Seemann, Jakub"]
[Black "Kamsky, Gata"]
[WhiteFideId "21874697"]
[BlackFideId "2000024"]
[WhiteElo "2364"]
[BlackElo "2660"]
[Result "1/2-1/2"]
[Round "09"]
[TimeControl "180+2"]
[Date "2023.05.09"]
[WhiteClock "0:00:04"]
[BlackClock "0:00:34"]

1. e4 {[%clk 0:03:00]}  b6 {[%clk 0:02:51]} 2. d4 {[%clk 0:03:00]}  Bb7 {[%clk 0:02:51]} 3. Nc3 {[%clk 0:03:01]}  e6 {[%clk 0:02:52]} 4. f4 {[%clk 0:03:01]}  Bb4 {[%clk 0:02:51]} 5. Bd3 {[%clk 0:02:56]}  Qh4+ {[%clk 0:02:50]} 6. g3 {[%clk 0:02:54]}  Qe7 {[%clk 0:02:50]} 7. Nf3 {[%clk 0:02:49]}  Nf6 {[%clk 0:02:45]} 8. Qe2 {[%clk 0:02:48]}  d5 {[%clk 0:02:41]} 9. e5 {[%clk 0:02:48]}  Ne4 {[%clk 0:02:41]} 10. Bd2 {[%clk 0:02:47]}  Nxd2 {[%clk 0:02:32]} 11. Nxd2 {[%clk 0:02:45]}  Bxc3 {[%clk 0:02:28]} 12. bxc3 {[%clk 0:02:45]}  g6 {[%clk 0:02:22]} 13. Nf3 {[%clk 0:02:38]}  Qa3 {[%clk 0:02:20]} 14. Qd2 {[%clk 0:02:30]}  Ba6 {[%clk 0:02:19]} 15. O-O {[%clk 0:02:27]}  Nc6 {[%clk 0:02:16]} 16. Kg2 {[%clk 0:01:58]}  Bxd3 {[%clk 0:02:14]} 17. cxd3 {[%clk 0:01:57]}  Na5 {[%clk 0:02:12]} 18. Rab1 {[%clk 0:01:56]}  h6 {[%clk 0:02:10]} 19. Qc2 {[%clk 0:01:46]}  c5 {[%clk 0:01:57]} 20. dxc5 {[%clk 0:01:45]}  Qxc5 {[%clk 0:01:56]} 21. Nd4 {[%clk 0:01:41]}  O-O {[%clk 0:01:55]} 22. Qd2 {[%clk 0:01:34]}  Kh7 {[%clk 0:01:48]} 23. Rfc1 {[%clk 0:01:14]}  Rac8 {[%clk 0:01:46]} 24. h4 {[%clk 0:01:06]}  Nc6 {[%clk 0:01:45]} 25. Nb5 {[%clk 0:01:02]}  h5 {[%clk 0:01:31]} 26. Nd6 {[%clk 0:00:52]}  Rc7 {[%clk 0:01:29]} 27. Rb5 {[%clk 0:00:26]}  Qa3 {[%clk 0:01:27]} 28. Rb3 {[%clk 0:00:26]}  Qa6 {[%clk 0:01:15]} 29. c4 {[%clk 0:00:22]}  Na5 {[%clk 0:01:07]} 30. Rbc3 {[%clk 0:00:20]}  dxc4 {[%clk 0:01:06]} 31. dxc4 {[%clk 0:00:20]}  Rc5 {[%clk 0:01:00]} 32. Kh2 {[%clk 0:00:20]}  Nb7 {[%clk 0:00:58]} 33. Ne4 {[%clk 0:00:19]}  Rd8 {[%clk 0:00:56]} 34. Qe3 {[%clk 0:00:13]}  Rc7 {[%clk 0:00:54]} 35. f5 {[%clk 0:00:13]}  exf5 {[%clk 0:00:51]} 36. Nf6+ {[%clk 0:00:12]}  Kg7 {[%clk 0:00:51]} 37. Qg5 {[%clk 0:00:11]}  Rh8 {[%clk 0:00:50]} 38. Re1 {[%clk 0:00:04]}  Qxa2+ {[%clk 0:00:47]} 39. Kh1 {[%clk 0:00:04]}  Qf2 {[%clk 0:00:46]} 40. Rce3 {[%clk 0:00:04]}  Nc5 {[%clk 0:00:45]} 41. e6 {[%clk 0:00:03]}  Nxe6 {[%clk 0:00:45]} 42. Rxe6 {[%clk 0:00:03]}  fxe6 {[%clk 0:00:45]} 43. Rxe6 {[%clk 0:00:04]}  Qf1+ {[%clk 0:00:43]} 44. Kh2 {[%clk 0:00:04]}  Qf2+ {[%clk 0:00:43]} 45. Kh1 {[%clk 0:00:04]}  Kf7 {[%clk 0:00:41]} 46. Nd5 {[%clk 0:00:02]}  Qf1+ {[%clk 0:00:33]} 47. Kh2 {[%clk 0:00:02]}  Qf2+ {[%clk 0:00:33]} 48. Kh1 {[%clk 0:00:03]}  Qf1+ {[%clk 0:00:34]} 49. Kh2 {[%clk 0:00:04]}  Qf2+ {[%clk 0:00:34]} 50. Kh1 {[%clk 0:00:04]} 1/2-1/2


[Site "https://www.chess.com"]